[Event "IIFL Wealth  4th Mumbai Junior U-13"]
[Site "Mumbai"]
[Date "2019.01.03"]
[Round "5"]
[White "Shrey Nilkant"]
[Black "Dhrithi Murgod"]
[Result "0-1"]
[ECO "B12"]
[WhiteElo "1466"]
[BlackElo "1177"]
[Annotator "NA RC"]
[PlyCount "82"]
[EventDate "2018.12.30"]
[EventType "swiss"]
[EventCountry "IND"]
[SourceTitle "playchess.com"]
[Source "ChessBase"]
[SourceQuality "1"]
[TimeControl "40/5400+30:1800+30"]

1. e4 {[%emt 0:00:00]} c6 {[%emt 0:00:59]} 2. d4 {[%emt 0:00:00]} d5 {[%emt 0:01:12]} 3. f3 {[%emt 0:00:21]} e6 {[%emt 0:01:44]} 4. Nc3 {[%emt 0:00:42]} Bb4 {[%emt 0:06:00]} 5. Qd3 {[%emt 0:02:19]} h6 {[%emt 0:07:57]} 6. Nge2 {[%emt 0:02:20]} Nd7 {[%emt 0:05:20]} 7. Bf4 {[%emt 0:01:17]} Ne7 {[%emt 0:03:17]} 8. O-O-O {[%emt 0:01:40]} Ba5 {[%emt 0:03:22]} 9. Kb1 {[%emt 0:06:16]} Bc7 {[%emt 0:02:36]} 10. Bxc7 {[%emt 0:02:59]} Qxc7 {[%emt 0:00:35]} 11. e5 {[%emt 0:01:08]} Nb6 {[%emt 0:05:52]} 12. g4 {[%emt 0:36:04]} Nc4 {[%emt 0:12:44]} 13. Ng3 {[%emt 0:18:01]} Ng6 {[%emt 0:06:32]} 14. Nh5 {[%emt 0:05:51]} Rg8 {[%emt 0:01:11]} 15. f4 {[%emt 0:03:16]} Nf8 {[%emt 0:06:16]} 16. Qf3 {[%emt 0:02:59]} Nb6 {[%emt 0:01:27]} 17. f5 {[%emt 0:01:51]} Bd7 {[%emt 0:05:42]} 18. f6 {[%emt 0:00:55]} g6 {[%emt 0:00:11]} 19. Ng7+ {[%emt 0:00:13]} Kd8 {[%emt 0:00:19]} 20. Bd3 {[%emt 0:03:56]} c5 {[%emt 0:02:28]} 21. Bb5 {[%emt 0:04:02]} Rc8 {[%emt 0:02:05]} 22. Qe2 {[%emt 0:02:02]} a6 {[%emt 0:01:45]} 23. Bxd7 {[%emt 0:00:17]} Nbxd7 {[%emt 0:00:26]} 24. Qd2 {[%emt 0:00:21]} cxd4 {[%emt 0:00:23]} 25. Qxd4 {[%emt 0:00:10]} Qxe5 {[%emt 0:01:09]} 26. Qxe5 {[%emt 0:01:14]} Nxe5 {[%emt 0:00:11]} 27. Ne4 {[%emt 0:00:23]} Nxg4 {[%emt 0:03:26]} 28. Nd6 {[%emt 0:00:19]} Rc7 {[%emt 0:00:12]} 29. c4 {[%emt 0:00:32]} Nf2 {[%emt 0:00:40]} 30. cxd5 {[%emt 0:00:30]} Nxd1 {[%emt 0:00:56]} 31. Rxd1 {[%emt 0:00:09]} Rd7 {[%emt 0:02:14]} 32. Nxf7+ {[%emt 0:01:35]} Kc8 {[%emt 0:00:35]} 33. Nxh6 {[%emt 0:01:59]} Rh8 {[%emt 0:00:07]} 34. Nf7 {[%emt 0:00:08]} Rxf7 {[%emt 0:00:23]} 35. Ne8 {[%emt 0:00:31]} Kd7 {[%emt 0:01:36]} 36. dxe6+ {[%emt 0:00:55]} Kxe6 {[%emt 0:00:05]} 37. Re1+ {[%emt 0:00:27]} Kd7 {[%emt 0:00:27]} 38. a3 {[%emt 0:00:35]} Ne6 {[%emt 0:00:42]} 39. Rc1 {[%emt 0:00:31]} Rxe8 {[%emt 0:00:21]} 40. Rd1+ {[%emt 0:00:00]} Kc7 {[%emt 0:00:00]} 41. Rc1+ {[%emt 0:00:47]} Kb8 {[%emt 0:00:23]} 0-1

[Event "IIFL Wealth  4th Mumbai Junior U-13"]
[Site "Mumbai"]
[Date "2019.01.03"]
[Round "5"]
[White "Singh, Arjun Kumar"]
[Black "Akshit Jha"]
[Result "1-0"]
[ECO "A06"]
[WhiteElo "1461"]
[BlackElo "1604"]
[Annotator "NA"]
[PlyCount "83"]
[EventDate "2018.12.30"]
[EventType "swiss"]
[EventCountry "IND"]
[SourceTitle "playchess.com"]
[Source "ChessBase"]
[SourceQuality "1"]
[TimeControl "40/5400+30:1800+30"]

1. Nf3 {[%emt 0:00:45]} d5 {[%emt 0:00:00]} 2. g3 {[%emt 0:00:08]} Nf6 {[%emt 0:00:00]} 3. Bg2 {[%emt 0:00:45]} Bf5 {[%emt 0:00:40]} 4. O-O {[%emt 0:01:39]} e6 {[%emt 0:00:08]} 5. d3 {[%emt 0:00:36]} Bd6 {[%emt 0:00:16]} 6. Nbd2 {[%emt 0:05:11]} O-O {[%emt 0:01:53]} 7. Nh4 {[%emt 0:00:30]} Bg4 {[%emt 0:00:34]} 8. Nhf3 {[%emt 0:02:35]} Nc6 {[%emt 0:08:02]} 9. c4 {[%emt 0:02:52]} Ne7 {[%emt 0:06:33]} 10. a3 {[%emt 0:00:58]} a5 {[%emt 0:00:52]} 11. Rb1 {[%emt 0:05:17]} a4 {[%emt 0:03:02]} 12. b4 {[%emt 0:02:02]} axb3 {[%emt 0:00:43]} 13. Qxb3 {[%emt 0:00:16]} b6 {[%emt 0:00:55]} 14. Bb2 {[%emt 0:03:14]} Nd7 {[%emt 0:02:42]} 15. cxd5 {[%emt 0:01:41]} exd5 {[%emt 0:01:18]} 16. e4 {[%emt 0:01:03]} f6 {[%emt 0:23:42]} 17. exd5 {[%emt 0:04:08]} Nc5 {[%emt 0:00:55]} 18. Qc2 {[%emt 0:00:14]} Bf5 {[%emt 0:09:44]} 19. Ne4 {[%emt 0:03:10]} Nxd5 {[%emt 0:05:52]} 20. Nd4 {[%emt 0:01:53]} Be6 {[%emt 0:10:09]} 21. Nxc5 {[%emt 0:00:16]} Bf7 {[%emt 0:01:52]} 22. Nce6 {[%emt 0:00:49]} Qe7 {[%emt 0:00:05]} 23. Bxd5 {[%emt 0:00:15]} Ra5 {[%emt 0:00:03]} 24. Nc6 {[%emt 0:00:52]} Qe8 {[%emt 0:00:19]} 25. Nxa5 {[%emt 0:00:13]} Bxe6 {[%emt 0:00:04]} 26. Bxe6+ {[%emt 0:00:05]} Qxe6 {[%emt 0:00:04]} 27. Qc4 {[%emt 0:00:07]} Qxc4 {[%emt 0:00:10]} 28. Nxc4 {[%emt 0:00:05]} Re8 {[%emt 0:00:05]} 29. Nxd6 {[%emt 0:00:02]} cxd6 {[%emt 0:00:06]} 30. Rfe1 {[%emt 0:00:06]} Rc8 {[%emt 0:00:04]} 31. Rbc1 {[%emt 0:00:04]} Rd8 {[%emt 0:00:04]} 32. Rc7 {[%emt 0:00:07]} d5 {[%emt 0:00:06]} 33. Ree7 {[%emt 0:00:04]} d4 {[%emt 0:00:04]} 34. Rxg7+ {[%emt 0:00:05]} Kh8 {[%emt 0:00:03]} 35. Rxh7+ {[%emt 0:00:10]} Kg8 {[%emt 0:00:03]} 36. Rcg7+ {[%emt 0:00:06]} Kf8 {[%emt 0:00:04]} 37. h4 {[%emt 0:00:21]} Re8 {[%emt 0:00:06]} 38. h5 {[%emt 0:00:03]} Re1+ {[%emt 0:00:07]} 39. Kg2 {[%emt 0:00:05]} f5 {[%emt 0:00:08]} 40. h6 {[%emt 0:00:00]} Rg1+ {[%emt 0:00:00]} 41. Kxg1 {[%emt 0:00:13]} f4 {[%emt 0:00:09]} 42. Rh8# 1-0

[Event "IIFL Wealth  4th Mumbai Junior U-13"]
[Site "Mumbai"]
[Date "2019.01.03"]
[Round "5"]
[White "Nanal Arnav"]
[Black "Bagwe Gaurang"]
[Result "1/2-1/2"]
[ECO "C68"]
[WhiteElo "1456"]
[BlackElo "1768"]
[Annotator "NA"]
[PlyCount "139"]
[EventDate "2018.12.30"]
[EventType "swiss"]
[EventCountry "IND"]
[SourceTitle "playchess.com"]
[Source "ChessBase"]
[SourceQuality "1"]
[TimeControl "40/5400+30:1800+30"]

1. e4 {[%emt 0:02:59]} e5 {[%emt 0:00:00]} 2. Nf3 {[%emt 0:00:48]} Nc6 {[%emt 0:00:01]} 3. Bb5 {[%emt 0:00:29]} a6 {[%emt 0:00:13]} 4. Bxc6 {[%emt 0:00:08]} dxc6 {[%emt 0:10:31]} 5. O-O {[%emt 0:00:13]} Bg4 {[%emt 0:02:00]} 6. h3 {[%emt 0:00:11]} Bxf3 {[%emt 0:03:51]} 7. Qxf3 {[%emt 0:00:02]} Qf6 {[%emt 0:03:42]} 8. Qxf6 {[%emt 0:00:23]} Nxf6 {[%emt 0:00:12]} 9. Nc3 {[%emt 0:00:20]} O-O-O {[%emt 0:04:05]} 10. d3 {[%emt 0:01:27]} h6 {[%emt 0:01:44]} 11. Be3 {[%emt 0:01:21]} c5 {[%emt 0:02:06]} 12. f4 {[%emt 0:06:49]} exf4 {[%emt 0:02:02]} 13. Rxf4 {[%emt 0:00:36]} Re8 {[%emt 0:11:51]} 14. Raf1 {[%emt 0:20:44]} Bd6 {[%emt 0:00:30]} 15. Rf5 b6 16. b3 {[%emt 0:17:34]} Re5 {[%emt 0:15:37]} 17. Ne2 {[%emt 0:09:51]} Kd7 {[%emt 0:25:34]} 18. Rxe5 {[%emt 0:02:16]} Bxe5 {[%emt 0:00:09]} 19. Rf5 {[%emt 0:03:04]} Kd6 {[%emt 0:03:31]} 20. Bf4 {[%emt 0:04:40]} Re8 {[%emt 0:01:32]} 21. Kf2 {[%emt 0:02:31]} Bxf4 {[%emt 0:00:20]} 22. Nxf4 {[%emt 0:01:04]} Re5 {[%emt 0:00:54]} 23. Rxe5 {[%emt 0:00:37]} Kxe5 {[%emt 0:00:00]} 24. Ke3 {[%emt 0:00:01]} g5 {[%emt 0:00:38]} 25. Ne2 {[%emt 0:00:53]} h5 {[%emt 0:01:31]} 26. c3 Ne8 {[%emt 0:01:42]} 27. Ng3 {[%emt 0:05:23]} Ng7 {[%emt 0:00:19]} 28. d4+ {[%emt 0:04:11]} cxd4+ {[%emt 0:00:40]} 29. cxd4+ {[%emt 0:00:01]} Ke6 {[%emt 0:00:01]} 30. Ne2 {[%emt 0:03:05]} c5 {[%emt 0:01:07]} 31. d5+ {[%emt 0:01:13]} Ke5 {[%emt 0:00:16]} 32. g4 {[%emt 0:00:37]} hxg4 {[%emt 0:00:59]} 33. hxg4 {[%emt 0:00:01]} Ne8 {[%emt 0:00:29]} 34. Ng1 {[%emt 0:00:25]} f6 {[%emt 0:00:40]} 35. Nf3+ {[%emt 0:04:30]} Kd6 {[%emt 0:00:01]} 36. Nd2 {[%emt 0:00:58]} b5 {[%emt 0:00:43]} 37. a4 {[%emt 0:01:11]} Nc7 {[%emt 0:00:53]} 38. Kd3 {[%emt 0:02:31]} Na8 {[%emt 0:00:59]} 39. Ke3 {[%emt 0:03:29]} Nb6 {[%emt 0:00:20]} 40. axb5 {[%emt 0:00:00]} axb5 {[%emt 0:00:00]} 41. Nf3 {[%emt 0:07:03]} Nd7 {[%emt 0:01:33]} 42. Kd3 {[%emt 0:00:21]} Nf8 {[%emt 0:05:42]} 43. Ke3 {[%emt 0:07:16]} Ng6 {[%emt 0:00:30]} 44. Kd3 {[%emt 0:00:11]} Nh4 {[%emt 0:03:40]} 45. Ke3 {[%emt 0:00:18]} Ng2+ {[%emt 0:02:31]} 46. Kf2 {[%emt 0:00:19]} Nf4 {[%emt 0:01:29]} 47. Ke3 {[%emt 0:00:03]} Nh3 {[%emt 0:02:24]} 48. Ke2 {[%emt 0:01:31]} c4 {[%emt 0:06:01]} 49. bxc4 {[%emt 0:00:53]} bxc4 {[%emt 0:00:20]} 50. Kd2 {[%emt 0:02:05]} Nf2 {[%emt 0:01:28]} 51. Kc3 {[%emt 0:00:42]} Nxe4+ {[%emt 0:05:34]} 52. Kxc4 {[%emt 0:01:34]} Nf2 {[%emt 0:00:22]} 53. Nh2 {[%emt 0:02:56]} Nh3 {[%emt 0:02:43]} 54. Kd4 {[%emt 0:00:46]} Nf4 {[%emt 0:00:18]} 55. Ke4 {[%emt 0:00:37]} Nxd5 {[%emt 0:00:13]} 56. Kf5 {[%emt 0:00:27]} Ke7 {[%emt 0:00:14]} 57. Nf3 {[%emt 0:01:37]} Ne3+ {[%emt 0:00:24]} 58. Kg6 {[%emt 0:00:05]} Nxg4 {[%emt 0:02:55]} 59. Nxg5 {[%emt 0:00:05]} Ne3 {[%emt 0:01:09]} 60. Ne4 {[%emt 0:00:29]} f5 {[%emt 0:00:18]} 61. Kg5 {[%emt 0:00:32]} Ke6 {[%emt 0:01:41]} 62. Ng3 {[%emt 0:00:09]} f4 {[%emt 0:00:11]} 63. Kxf4 {[%emt 0:00:04]} Nd5+ {[%emt 0:00:06]} 64. Ke4 {[%emt 0:00:05]} Nf6+ {[%emt 0:00:07]} 65. Kd4 {[%emt 0:00:04]} Kd6 {[%emt 0:00:07]} 66. Nf5+ {[%emt 0:00:03]} Kc6 {[%emt 0:00:11]} 67. Ne7+ {[%emt 0:00:04]} Kd7 {[%emt 0:00:06]} 68. Nd5 {[%emt 0:00:03]} Ng4 {[%emt 0:00:07]} 69. Nf6+ {[%emt 0:00:03]} Nxf6 {[%emt 0:00:15]} 70. Ke3 {[%emt 0:00:14]} 1/2-1/2

[Event "IIFL Wealth  4th Mumbai Junior U-13"]
[Site "Mumbai"]
[Date "2019.01.03"]
[Round "5"]
[White "Sairaj Dilip Vernekar"]
[Black "Ananmay Sharma"]
[Result "0-1"]
[ECO "B12"]
[WhiteElo "1445"]
[BlackElo "1749"]
[Annotator "NA RC"]
[PlyCount "120"]
[EventDate "2018.12.30"]
[EventType "swiss"]
[EventCountry "IND"]
[SourceTitle "playchess.com"]
[Source "ChessBase"]
[SourceQuality "1"]
[TimeControl "40/5400+30:1800+30"]

1. e4 {[%emt 0:00:00]} c6 {[%emt 0:00:00]} 2. d4 {[%emt 0:00:00]} d5 {[%emt 0:00:00]} 3. e5 {[%emt 0:00:00]} Bf5 {[%emt 0:00:00]} 4. c3 {[%emt 0:00:54]} e6 {[%emt 0:00:09]} 5. Bd3 {[%emt 0:01:39]} Bxd3 {[%emt 0:03:36]} 6. Qxd3 {[%emt 0:00:06]} c5 {[%emt 0:03:49]} 7. Nf3 {[%emt 0:03:37]} Nc6 {[%emt 0:01:03]} 8. O-O {[%emt 0:06:11]} Nge7 {[%emt 0:07:13]} 9. Na3 {[%emt 0:09:46]} Nf5 {[%emt 0:05:11]} 10. Nc2 {[%emt 0:03:04]} Rc8 {[%emt 0:20:52]} 11. Be3 {[%emt 0:10:02]} cxd4 {[%emt 0:01:08]} 12. Bxd4 {[%emt 0:08:17]} Be7 {[%emt 0:03:18]} 13. Ne3 {[%emt 0:08:32]} Nfxd4 {[%emt 0:02:01]} 14. cxd4 {[%emt 0:00:57]} O-O {[%emt 0:02:01]} 15. a3 {[%emt 0:02:35]} Qb6 {[%emt 0:02:50]} 16. b4 {[%emt 0:03:30]} a6 {[%emt 0:01:14]} 17. Rfc1 {[%emt 0:07:54]} Na7 {[%emt 0:03:42]} 18. Rab1 {[%emt 0:01:23]} Rc6 {[%emt 0:10:08]} 19. Rxc6 {[%emt 0:08:11]} Qxc6 {[%emt 0:00:46]} 20. Qb3 {[%emt 0:08:32]} Rc8 {[%emt 0:12:17]} 21. a4 {[%emt 0:06:21]} Qc3 {[%emt 0:02:57]} 22. Kf1 {[%emt 0:00:14]} Qxb3 {[%emt 0:04:52]} 23. Rxb3 {[%emt 0:00:06]} Rc1+ {[%emt 0:00:15]} 24. Ke2 {[%emt 0:01:06]} b5 {[%emt 0:01:27]} 25. a5 {[%emt 0:02:25]} Nc6 {[%emt 0:02:59]} 26. Kd2 {[%emt 0:00:16]} Rc4 {[%emt 0:01:46]} 27. Nxc4 {[%emt 0:01:38]} dxc4 {[%emt 0:00:05]} 28. Rb1 {[%emt 0:00:15]} Bxb4+ {[%emt 0:00:04]} 29. Ke3 {[%emt 0:00:37]} Bxa5 {[%emt 0:00:18]} 30. Ke4 {[%emt 0:00:17]} Bb6 {[%emt 0:00:54]} 31. d5 {[%emt 0:00:59]} exd5+ {[%emt 0:00:09]} 32. Kxd5 {[%emt 0:00:07]} Na5 {[%emt 0:01:14]} 33. e6 {[%emt 0:00:37]} fxe6+ {[%emt 0:00:11]} 34. Kxe6 {[%emt 0:00:06]} h6 {[%emt 0:00:14]} 35. Rd1 {[%emt 0:00:25]} c3 {[%emt 0:00:24]} 36. Ne5 {[%emt 0:01:20]} c2 {[%emt 0:00:55]} 37. Rc1 {[%emt 0:00:11]} Nb3 {[%emt 0:00:04]} 38. Rxc2 {[%emt 0:00:13]} Nd4+ {[%emt 0:00:03]} 39. Kd5 {[%emt 0:00:24]} Nxc2 {[%emt 0:00:04]} 40. Kc6 {[%emt 0:00:00]} Bxf2 {[%emt 0:00:00]} 41. Nd3 {[%emt 0:00:00]} Be3 {[%emt 0:00:00]} 42. Kd5 {[%emt 0:00:00]} Bd2 {[%emt 0:00:02]} 43. Kc5 {[%emt 0:00:03]} Bc3 {[%emt 0:00:55]} 44. h3 {[%emt 0:00:16]} b4 {[%emt 0:00:14]} 45. Kc4 {[%emt 0:00:09]} Ne3+ {[%emt 0:00:03]} 46. Kb3 {[%emt 0:00:06]} Nxg2 {[%emt 0:00:04]} 47. Nxb4 {[%emt 0:00:07]} Bxb4 {[%emt 0:00:03]} 48. Kxb4 {[%emt 0:00:03]} Nf4 {[%emt 0:00:05]} 49. h4 {[%emt 0:00:04]} g5 {[%emt 0:00:03]} 50. hxg5 {[%emt 0:00:04]} hxg5 {[%emt 0:00:04]} 51. Ka5 {[%emt 0:00:29]} g4 {[%emt 0:00:04]} 52. Kxa6 {[%emt 0:00:05]} g3 {[%emt 0:00:03]} 53. Kb5 {[%emt 0:00:05]} g2 {[%emt 0:00:04]} 54. Kc4 {[%emt 0:00:04]} g1=Q {[%emt 0:00:05]} 55. Kc3 {[%emt 0:00:11]} Qe3+ {[%emt 0:00:05]} 56. Kb4 {[%emt 0:00:03]} Qc1 {[%emt 0:00:06]} 57. Kb5 {[%emt 0:00:03]} Nd5 {[%emt 0:00:05]} 58. Ka6 {[%emt 0:00:10]} Qc6+ {[%emt 0:00:19]} 59. Ka7 {[%emt 0:00:11]} Qb6+ {[%emt 0:00:03]} 60. Ka8 {[%emt 0:00:07]} Nc7# {[%emt 0:00:03]} 0-1

[Event "IIFL Wealth  4th Mumbai Junior U-13"]
[Site "Mumbai"]
[Date "2019.01.03"]
[Round "5"]
[White "Athalye Varad"]
[Black "Arhan Chethan Anand"]
[Result "1-0"]
[ECO "B93"]
[WhiteElo "1442"]
[BlackElo "1710"]
[Annotator "NA RC"]
[PlyCount "147"]
[EventDate "2018.12.30"]
[EventType "swiss"]
[EventCountry "IND"]
[SourceTitle "playchess.com"]
[Source "ChessBase"]
[SourceQuality "1"]
[TimeControl "40/5400+30:1800+30"]

1. e4 {[%emt 0:00:00]} c5 {[%emt 0:00:00]} 2. Nf3 {[%emt 0:00:00]} d6 {[%emt 0:00:00]} 3. d4 {[%emt 0:00:10]} cxd4 {[%emt 0:00:00]} 4. Nxd4 {[%emt 0:00:02]} Nf6 {[%emt 0:00:00]} 5. Nc3 {[%emt 0:00:13]} a6 {[%emt 0:00:00]} 6. f4 {[%emt 0:00:29]} e5 {[%emt 0:00:11]} 7. Nf3 {[%emt 0:00:33]} Nbd7 {[%emt 0:00:51]} 8. Be2 {[%emt 0:01:10]} Be7 {[%emt 0:00:43]} 9. O-O {[%emt 0:04:29]} O-O {[%emt 0:01:36]} 10. Kh1 {[%emt 0:00:43]} b5 {[%emt 0:02:34]} 11. a3 {[%emt 0:01:57]} Bb7 {[%emt 0:00:44]} 12. Bd3 {[%emt 0:01:36]} Qc7 {[%emt 0:03:24]} 13. Nd2 {[%emt 0:03:30]} Rac8 {[%emt 0:04:59]} 14. Nb3 {[%emt 0:01:18]} Rfd8 {[%emt 0:03:33]} 15. Be3 {[%emt 0:01:03]} Nf8 {[%emt 0:10:12]} 16. Qe1 {[%emt 0:07:02]} Ng4 {[%emt 0:05:29]} 17. Bg1 {[%emt 0:01:01]} exf4 {[%emt 0:02:15]} 18. Rxf4 {[%emt 0:02:53]} Ne5 {[%emt 0:00:03]} 19. Rf1 {[%emt 0:01:01]} Nfg6 {[%emt 0:03:07]} 20. Rd1 {[%emt 0:03:00]} Bf6 {[%emt 0:05:54]} 21. Rc1 {[%emt 0:12:35]} Bg5 {[%emt 0:10:19]} 22. Rd1 {[%emt 0:05:29]} Re8 {[%emt 0:07:19]} 23. Qg3 {[%emt 0:04:55]} h6 {[%emt 0:01:21]} 24. Qf2 {[%emt 0:07:51]} Re6 {[%emt 0:07:44]} 25. Nd4 {[%emt 0:07:06]} Rf6 {[%emt 0:06:21]} 26. Qe1 {[%emt 0:02:27]} Qd7 {[%emt 0:04:23]} 27. Be2 {[%emt 0:02:32]} Nh4 {[%emt 0:02:38]} 28. Bf2 {[%emt 0:01:14]} Nhg6 {[%emt 0:04:08]} 29. h4 {[%emt 0:02:13]} Bf4 {[%emt 0:00:02]} 30. h5 {[%emt 0:00:28]} Nf8 {[%emt 0:01:43]} 31. Bh4 {[%emt 0:00:13]} Bg5 {[%emt 0:00:18]} 32. Rxf6 {[%emt 0:00:16]} gxf6 {[%emt 0:00:34]} 33. Bxg5 {[%emt 0:00:57]} hxg5 {[%emt 0:00:38]} 34. Nf5 {[%emt 0:01:33]} Rc5 {[%emt 0:04:21]} 35. Nxd6 {[%emt 0:04:16]} Qc7 {[%emt 0:00:43]} 36. Qf2 {[%emt 0:03:25]} Nfd7 {[%emt 0:00:37]} 37. Nxb7 {[%emt 0:06:13]} Qxb7 {[%emt 0:00:16]} 38. Nd5 {[%emt 0:00:40]} Rxc2 {[%emt 0:03:18]} 39. Nxf6+ {[%emt 0:00:13]} Kg7 {[%emt 0:01:05]} 40. Nxd7 {[%emt 0:00:00]} Nxd7 {[%emt 0:00:00]} 41. Qd4+ {[%emt 0:06:06]} Kg8 {[%emt 0:03:30]} 42. Bg4 {[%emt 0:01:34]} Nf8 {[%emt 0:02:36]} 43. h6 {[%emt 0:00:45]} f5 {[%emt 0:01:24]} 44. Bxf5 {[%emt 0:01:02]} Rc6 {[%emt 0:01:46]} 45. Qd5+ {[%emt 0:00:51]} Kh8 {[%emt 0:00:14]} 46. Qe5+ {[%emt 0:01:30]} Kg8 {[%emt 0:00:02]} 47. h7+ {[%emt 0:02:56]} Nxh7 {[%emt 0:00:20]} 48. Rd8+ {[%emt 0:01:59]} Nf8 {[%emt 0:00:41]} 49. Be6+ {[%emt 0:00:14]} Rxe6 {[%emt 0:01:29]} 50. Qxe6+ {[%emt 0:00:08]} Kg7 {[%emt 0:00:08]} 51. Qe5+ {[%emt 0:00:14]} Kg6 {[%emt 0:01:04]} 52. Rxf8 {[%emt 0:01:32]} Qh7+ {[%emt 0:00:09]} 53. Kg1 {[%emt 0:00:19]} Qa7+ {[%emt 0:00:02]} 54. Rf2 {[%emt 0:00:17]} b4 {[%emt 0:00:17]} 55. Qf6+ {[%emt 0:00:25]} Kh7 {[%emt 0:00:18]} 56. Qf7+ {[%emt 0:00:05]} Qxf7 {[%emt 0:00:04]} 57. Rxf7+ {[%emt 0:00:02]} Kg6 {[%emt 0:00:04]} 58. Ra7 {[%emt 0:00:14]} bxa3 {[%emt 0:00:04]} 59. bxa3 {[%emt 0:00:06]} Kf6 {[%emt 0:00:04]} 60. Rxa6+ {[%emt 0:00:06]} Ke5 {[%emt 0:00:00]} 61. Ra5+ {[%emt 0:00:37]} Kxe4 {[%emt 0:00:12]} 62. Rxg5 {[%emt 0:00:35]} Kd4 {[%emt 0:00:09]} 63. a4 {[%emt 0:00:06]} Kc4 {[%emt 0:00:02]} 64. a5 {[%emt 0:00:03]} Kd4 65. a6 {[%emt 0:00:05]} Kd3 {[%emt 0:00:03]} 66. a7 {[%emt 0:00:06]} Kd2 {[%emt 0:00:02]} 67. a8=Q {[%emt 0:00:09]} Ke3 {[%emt 0:00:02]} 68. Rg3+ {[%emt 0:00:17]} Kf4 {[%emt 0:00:01]} 69. Qf3+ {[%emt 0:00:09]} Ke5 {[%emt 0:00:02]} 70. Rg5+ {[%emt 0:00:06]} Kd4 {[%emt 0:00:04]} 71. Rd5+ {[%emt 0:00:04]} Kc4 {[%emt 0:00:01]} 72. Qd3+ {[%emt 0:00:01]} Kb4 {[%emt 0:00:08]} 73. Rb5+ {[%emt 0:00:05]} Ka4 {[%emt 0:00:03]} 74. Qb3# {[%emt 0:00:03]} 1-0

[Event "IIFL Wealth  4th Mumbai Junior U-13"]
[Site "Mumbai"]
[Date "2019.01.03"]
[Round "5"]
[White "Swara Lakshmi S Nair"]
[Black "Aarna Chugh"]
[Result "1/2-1/2"]
[ECO "B40"]
[WhiteElo "1415"]
[BlackElo "1164"]
[Annotator "NA RC"]
[PlyCount "80"]
[EventDate "2018.12.30"]
[EventType "swiss"]
[EventCountry "IND"]
[SourceTitle "playchess.com"]
[Source "ChessBase"]
[SourceQuality "1"]
[TimeControl "40/5400+30:1800+30"]

1. e4 {[%emt 0:00:00]} c5 {[%emt 0:00:00]} 2. Nf3 {[%emt 0:01:32]} e6 {[%emt 0:00:39]} 3. d3 {[%emt 0:02:26]} d5 {[%emt 0:02:13]} 4. Nbd2 {[%emt 0:01:26]} Nc6 {[%emt 0:05:21]} 5. g3 {[%emt 0:00:44]} dxe4 {[%emt 0:03:37]} 6. Nxe4 {[%emt 0:03:49]} h6 {[%emt 0:06:22]} 7. Bg2 {[%emt 0:03:01]} Nf6 {[%emt 0:08:54]} 8. Ned2 {[%emt 0:18:25]} Be7 {[%emt 0:05:55]} 9. O-O {[%emt 0:01:06]} O-O {[%emt 0:01:50]} 10. Re1 {[%emt 0:06:44]} Qc7 {[%emt 0:09:52]} 11. a4 {[%emt 0:09:18]} b6 {[%emt 0:07:48]} 12. Nc4 {[%emt 0:01:39]} Nd5 {[%emt 0:08:55]} 13. Qe2 {[%emt 0:18:32]} Bb7 {[%emt 0:03:08]} 14. Bd2 {[%emt 0:02:28]} Rfd8 {[%emt 0:03:54]} 15. Rad1 {[%emt 0:01:11]} Bf6 {[%emt 0:03:35]} 16. Kh1 {[%emt 0:02:50]} Nd4 {[%emt 0:05:28]} 17. Nxd4 {[%emt 0:00:47]} Bxd4 {[%emt 0:00:25]} 18. Be3 {[%emt 0:04:50]} Nxe3 {[%emt 0:02:06]} 19. fxe3 {[%emt 0:02:48]} Bf6 {[%emt 0:02:50]} 20. Rf1 {[%emt 0:00:41]} a6 {[%emt 0:02:21]} 21. b3 {[%emt 0:05:49]} b5 {[%emt 0:02:34]} 22. Nd2 {[%emt 0:01:51]} Rac8 {[%emt 0:03:08]} 23. Kg1 {[%emt 0:00:52]} Bxg2 {[%emt 0:00:33]} 24. Qxg2 {[%emt 0:00:11]} Qc6 {[%emt 0:00:15]} 25. Qf2 {[%emt 0:00:28]} Rd7 {[%emt 0:01:12]} 26. Ne4 {[%emt 0:00:38]} Be5 {[%emt 0:00:38]} 27. axb5 {[%emt 0:01:06]} axb5 {[%emt 0:00:09]} 28. Qf3 {[%emt 0:00:29]} f5 {[%emt 0:02:31]} 29. Nd2 {[%emt 0:00:32]} Qxf3 {[%emt 0:00:10]} 30. Nxf3 {[%emt 0:00:07]} Bf6 {[%emt 0:00:09]} 31. Rfe1 {[%emt 0:00:47]} Ra8 {[%emt 0:00:45]} 32. e4 {[%emt 0:01:00]} Ra2 {[%emt 0:01:07]} 33. exf5 {[%emt 0:02:36]} exf5 {[%emt 0:00:16]} 34. Re2 {[%emt 0:00:45]} Rda7 {[%emt 0:01:36]} 35. Kf2 {[%emt 0:01:18]} Kf7 {[%emt 0:01:10]} 36. Rc1 {[%emt 0:00:54]} Bb2 {[%emt 0:01:03]} 37. Rd1 {[%emt 0:00:19]} Bf6 {[%emt 0:00:44]} 38. Rc1 {[%emt 0:00:37]} Bb2 {[%emt 0:00:10]} 39. Rce1 {[%emt 0:00:40]} Bf6 {[%emt 0:00:14]} 40. Kg1 {[%emt 0:00:00]} Ra1 {[%emt 0:00:00]} 1/2-1/2

[Event "IIFL Wealth  4th Mumbai Junior U-13"]
[Site "Mumbai"]
[Date "2019.01.03"]
[Round "5"]
[White "Daakshin Arun"]
[Black "Savitha Shri B"]
[Result "0-1"]
[ECO "E97"]
[WhiteElo "1400"]
[BlackElo "1894"]
[Annotator "NA RC"]
[PlyCount "168"]
[EventDate "2018.12.30"]
[EventType "swiss"]
[EventCountry "IND"]
[SourceTitle "playchess.com"]
[Source "ChessBase"]
[SourceQuality "1"]
[TimeControl "40/5400+30:1800+30"]

1. d4 Nf6 2. c4 g6 3. Nc3 Bg7 4. e4 d6 5. Nf3 O-O 6. Be2 e5 7. O-O Nc6 8. d5 Ne7 9. b4 Ne8 10. a4 f5 11. Nd2 Nf6 12. Ba3 {E97: King's Indian: Classical Main Line (6...e5 7 0-0 Nc6): 8 Be3 and 8 d5 Ne7, not 9 Ne1} f4 13. f3 g5 14. c5 h5 15. Nc4 Ng6 16. Rc1 $146 ({Predecessor:} 16. b5 dxc5 17. Bxc5 Rf7 18. a5 g4 19. b6 cxb6 20. axb6 g3 21. Kh1 Bf8 22. Rxa7 Rb8 {0-1 (39) Maksimenko,A (2497)-Vocaturo,D (2600) Bastia 2016}) 16... Ne8 17. Na5 Nh4 18. h3 Bh6 19. Kf2 g4 20. hxg4 hxg4 21. Rh1 Qg5 22. Qg1 Rf7 23. Ke1 Bf8 24. Nc4 Rg7 25. Kd2 Nf6 26. Qf2 Rh7 27. cxd6 cxd6 28. b5 Ne8 29. a5 Bd7 30. Bb4 Be7 31. Rb1 Rh6 32. Ba3 Ng7 33. Kc2 Nh5 34. Rhg1 Ng3 35. Rbc1 Kf7 36. Rcd1 Qh5 37. fxg4 Qg5 38. Bf3 Bxg4 39. Bxg4 Qxg4 40. b6 a6 41. Rc1 Rc8 42. Kd3 Qg6 43. Nd2 $17 Rhh8 44. Nf3 Rxc3+ 45. Rxc3 Nxe4 46. Qe1 Nxc3+ 47. Kxc3 Rc8+ 48. Kb2 Qc2+ 49. Ka1 Rc3 50. Bb2 Rc4 51. Ba3 Ra4 52. Qc1 Qxc1+ 53. Rxc1 Nxf3 54. Kb2 Nd2 55. Rc7 Nc4+ 56. Kb3 Rxa3+ 57. Kxc4 Rxa5 58. Rxb7 Rc5+ 59. Kd3 Rxd5+ 60. Ke4 Rd4+ 61. Kf5 Rd2 62. Ra7 Rxg2 63. Rxa6 Rb2 64. Ra1 Rxb6 65. Rh1 Bf8 66. Kg4 Kg6 67. Rh3 Rb4 68. Rd3 Re4 69. Kf3 Re3+ 70. Rxe3 fxe3 71. Kxe3 d5 72. Kd2 Kf5 73. Ke2 Ke4 74. Kd2 d4 75. Ke2 d3+ 76. Kd2 Bb4+ 77. Kd1 Ke3 78. Kc1 d2+ 79. Kd1 e4 80. Kc2 Ke2 81. Kb1 d1=Q+ 82. Ka2 Qa4+ 83. Kb1 Qb3+ 84. Ka1 Bc3# 0-1